bitfinex-derivatives/quotes_BTCF0:USTF0_20250125
["timestamp","ask_amount","ask_price","bid_price","bid_amount"]
[1737771401074,0.121219,104850.0,104840.0,0.49636746]
[1737771401279,0.273825,104850.0,104840.0,0.46297177]
[1737771401978,0.273825,104850.0,104840.0,0.10217177]
[1737771403783,0.121219,104850.0,104830.0,1.29698657]
[1737771403978,0.24314,104840.0,104830.0,1.3826174]
[1737771404174,0.24314,104840.0,104830.0,1.41601684]
[1737771404374,0.24314,104840.0,104830.0,1.34637684]
[1737771404684,0.300459,104840.0,104830.0,0.83294484]
[1737771404883,0.24314,104840.0,104830.0,0.32006484]
[1737771405085,0.24314,104840.0,104830.0,0.2866654]
[1737771405383,0.60394,104840.0,104830.0,0.22868109]
[1737771406686,0.661259,104840.0,104830.0,0.22868109]
[1737771407786,0.63402215,104840.0,104830.0,0.22868109]
[1737771408789,0.89072301,104840.0,104830.0,0.22868109]
[1737771408988,0.89072301,104840.0,104830.0,0.0001434]
[1737771410282,0.152635,104830.0,104820.0,0.17137137]
[1737771410490,0.66353615,104830.0,104820.0,0.17137137]
[1737771413592,0.66353615,104830.0,104810.0,0.69600978]
[1737771413794,0.576135,104830.0,104820.0,0.15265]
[1737771415586,0.58562947,104830.0,104820.0,0.15265]
[1737771416685,0.22482947,104830.0,104820.0,0.51345]
[1737771418990,0.215335,104830.0,104820.0,0.51345]
[1737771423698,0.152635,104830.0,104820.0,0.51345]
[1737771423997,0.152635,104830.0,104820.0,0.57695]
[1737771426995,0.60096955,104840.0,104820.0,0.57695]
[1737771427192,0.71477694,104840.0,104820.0,0.57695]
[1737771427699,0.68472987,104840.0,104820.0,0.57695]
[1737771429694,0.68472987,104840.0,104820.0,0.4243]
[1737771429895,0.68472987,104840.0,104830.0,0.152635]
[1737771432691,0.47475079,104840.0,104830.0,0.18603905]
[1737771432899,0.47475079,104840.0,104830.0,0.24339123]
[1737771432900,0.11395079,104840.0,104830.0,0.24339123]
[1737771433211,0.11395079,104840.0,104830.0,0.27449067]
[1737771434305,0.11395079,104840.0,104830.0,0.21713659]
[1737771434604,0.17130487,104840.0,104830.0,0.21713659]
[1737771435609,0.38127995,104840.0,104830.0,0.21713659]
[1737771435907,0.32392587,104840.0,104830.0,0.18603659]
[1737771436300,0.32392587,104840.0,104830.0,0.58594565]
[1737771439514,0.26657179,104840.0,104830.0,0.58594565]
[1737771439703,0.26657179,104840.0,104830.0,0.55254406]
[1737771440303,0.26657179,104840.0,104830.0,0.32400637]
[1737771442211,0.26657179,104840.0,104830.0,0.33365927]
[1737771445707,0.32392587,104840.0,104830.0,0.32400637]
[1737771445907,0.38127995,104840.0,104830.0,0.32400637]
[1737771446106,0.38127995,104840.0,104830.0,0.17137137]
[1737771446307,0.74207995,104840.0,104830.0,0.17137137]
[1737771450719,0.94681303,104840.0,104820.0,0.22853769]
[1737771451023,0.15265,104820.0,104810.0,0.6304918]
[1737771451218,0.68551224,104820.0,104810.0,0.6304918]
[1737771451620,0.51345,104820.0,104810.0,0.6304918]
[1737771451930,0.68836686,104820.0,104810.0,0.6304918]
[1737771452112,0.68836686,104820.0,104810.0,0.51540912]
[1737771453516,0.83571686,104820.0,104800.0,0.3438264]
[1737771453716,0.69382243,104810.0,104800.0,0.3438264]
[1737771454222,0.152679,104800.0,104790.0,0.80352542]
[1737771454435,0.60093743,104800.0,104790.0,0.80352542]
[1737771456722,0.152693,104790.0,104780.0,0.00021485]
[1737771456923,0.63205143,104790.0,104780.0,0.00021485]
[1737771459831,0.544593,104790.0,104780.0,0.00021485]
[1737771460632,0.74373328,104790.0,104780.0,0.00021485]
[1737771462436,0.83119171,104790.0,104780.0,0.00021485]
[1737771464422,0.71739726,104790.0,104780.0,0.00021485]
[1737771464831,0.72670208,104790.0,104780.0,0.00021485]
[1737771465532,0.75880208,104790.0,104780.0,0.00021485]
[1737771468127,0.75880208,104790.0,104780.0,0.0001434]
[1737771468335,0.152719,104780.0,104760.0,0.22518735]
[1737771468634,0.24018043,104770.0,104760.0,0.22518735]
[1737771469328,0.24018043,104770.0,104760.0,0.21556557]
[1737771471539,0.152722,104770.0,104760.0,0.21556557]
[1737771478148,0.16209171,104770.0,104760.0,0.21556557]
[1737771478442,0.16209171,104770.0,104760.0,0.214134]
[1737771480139,0.36123199,104770.0,104760.0,0.214134]
[1737771480847,0.36123199,104770.0,104760.0,0.182834]
[1737771484346,0.30468907,104770.0,104760.0,0.182834]
[1737771485644,0.36211406,104770.0,104760.0,0.182834]
[1737771486145,0.39461406,104770.0,104760.0,0.182834]
[1737771488738,0.39461406,104770.0,104760.0,0.152734]
[1737771490240,0.45203905,104770.0,104750.0,0.40071589]
[1737771490443,0.45203905,104770.0,104750.0,0.57751634]
[1737771490444,0.11484998,104760.0,104750.0,0.57751634]
[1737771490644,0.05742499,104760.0,104750.0,0.57751634]
[1737771490950,0.05742499,104760.0,104750.0,0.5440914]
[1737771491143,0.05742499,104760.0,104750.0,0.1528914]
[1737771491348,0.26758698,104760.0,104750.0,0.1528914]
[1737771492544,0.41018434,104760.0,104750.0,0.1528914]
[1737771495148,0.35275935,104760.0,104750.0,0.1528914]
[1737771495650,0.41018434,104760.0,104750.0,0.1528914]
[1737771496955,0.58089543,104760.0,104750.0,0.1528914]
[1737771499056,0.58089543,104760.0,104750.0,0.0001434]
[1737771502758,0.94169543,104760.0,104750.0,0.0001434]
[1737771502955,0.58089543,104760.0,104750.0,0.0001434]
[1737771512164,0.43829807,104760.0,104750.0,0.0001434]
[1737771514863,0.152763,104750.0,104730.0,0.545478]
[1737771515167,0.05742499,104740.0,104730.0,0.545478]
[1737771515865,0.05742499,104740.0,104730.0,0.77436074]
[1737771519367,0.31469107,104740.0,104730.0,0.545478]
[1737771519763,0.82825707,104740.0,104730.0,0.184678]
[1737771523562,0.71391659,104740.0,104730.0,0.184678]
[1737771524073,0.72348596,104740.0,104730.0,0.184678]
[1737771526376,0.72348596,104740.0,104730.0,0.18494102]
[1737771533979,0.20991996,104740.0,104730.0,0.18494102]
[1737771534181,0.15249497,104740.0,104730.0,0.18494102]
[1737771534374,0.1429256,104740.0,104730.0,0.24236601]
[1737771534575,0.1429256,104740.0,104730.0,0.60316601]
[1737771534781,0.1429256,104740.0,104730.0,0.63406601]
[1737771534972,0.1429256,104740.0,104730.0,0.66749609]
[1737771536676,0.1142488,104740.0,104730.0,0.66749909]
[1737771536879,0.1142488,104740.0,104730.0,0.66749806]
[1737771537087,0.1142488,104740.0,104730.0,0.691494]
[1737771537270,0.1142488,104740.0,104730.0,0.63406901]
[1737771538877,0.1142488,104740.0,104730.0,0.66749761]
[1737771540585,0.25752801,104750.0,104730.0,0.71017075]
[1737771540785,0.25752801,104750.0,104740.0,0.513566]
[1737771540982,0.44318001,104750.0,104740.0,0.513566]
[1737771541686,0.44318001,104750.0,104730.0,0.62184576]
[1737771541883,0.05742499,104740.0,104730.0,0.77462276]
[1737771542581,0.05742499,104740.0,104730.0,0.74272276]
[1737771542885,0.21019099,104740.0,104730.0,0.74272276]
[1737771543778,0.89791048,104750.0,104730.0,0.74272276]
[1737771544280,0.89791048,104750.0,104730.0,0.51384002]
[1737771544281,0.1142488,104740.0,104730.0,0.51384002]
[1737771545185,0.4750488,104740.0,104730.0,0.15304002]
[1737771552191,0.4750488,104740.0,104730.0,0.00026302]
[1737771552496,0.71536826,104740.0,104730.0,0.00026302]
[1737771556689,0.91475615,104740.0,104730.0,0.00026302]
[1737771559399,0.67443669,104740.0,104730.0,0.24059748]
[1737771559590,0.67443669,104740.0,104730.0,0.15304402]
[1737771563196,0.91475615,104740.0,104730.0,0.00026302]
[1737771563797,0.74404506,104740.0,104730.0,0.00026302]
[1737771564092,0.5037256,104740.0,104730.0,0.15304402]
[1737771564290,0.5037256,104740.0,104730.0,0.21654402]
[1737771568701,0.5037256,104740.0,104730.0,0.24944402]
[1737771570405,0.5037256,104740.0,104730.0,0.21654402]
[1737771570600,0.74404506,104740.0,104730.0,0.15304402]
[1737771573308,0.6564916,104740.0,104730.0,0.15304402]
[1737771577718,0.71394868,104740.0,104730.0,0.15304402]
[1737771578011,0.88465977,104740.0,104730.0,0.15304402]
[1737771580104,0.88465977,104740.0,104730.0,0.18647949]
[1737771582618,0.88465977,104740.0,104730.0,0.15304402]
[1737771583316,0.74173417,104740.0,104730.0,0.15304402]
[1737771585117,0.74173417,104740.0,104730.0,0.16255072]
[1737771585917,0.74173417,104740.0,104730.0,0.15304402]
[1737771586304,0.74173417,104740.0,104730.0,0.18647961]
[1737771596325,0.68427709,104740.0,104730.0,0.18647961]
[1737771599827,0.68427709,104740.0,104730.0,0.18621659]
[1737771600722,0.74173417,104740.0,104730.0,0.18621659]
[1737771602130,0.68427709,104740.0,104730.0,0.18647961]
[1737771602527,0.53151109,104740.0,104730.0,0.18647961]
[1737771605536,0.58896817,104740.0,104730.0,0.18647961]
[1737771606140,0.79919125,104740.0,104730.0,0.03369861]
[1737771608236,0.74173417,104740.0,104730.0,0.03369861]
[1737771609045,0.57102308,104740.0,104730.0,0.03369861]
[1737771609235,0.57102308,104740.0,104730.0,0.00026302]
[1737771610442,0.57102308,104740.0,104730.0,0.03369889]
[1737771611032,0.57102308,104740.0,104730.0,0.00026302]
[1737771617445,0.74279095,104740.0,104730.0,0.00026302]
[1737771618445,0.80024803,104740.0,104730.0,0.00026302]
[1737771618642,0.80024803,104740.0,104730.0,0.033699]
[1737771619347,0.80024803,104740.0,104730.0,0.00026302]
[1737771626751,0.82904281,104740.0,104730.0,0.00026302]
[1737771629355,0.77158573,104740.0,104730.0,0.00026302]
[1737771630748,0.82904281,104740.0,104730.0,0.00026302]
[1737771635262,0.62848016,104740.0,104730.0,0.00026302]
[1737771656267,0.82904281,104740.0,104730.0,0.00026302]
[1737771657173,0.77158573,104740.0,104730.0,0.00026302]
[1737771658262,0.77158573,104740.0,104730.0,0.03370025]
[1737771658973,0.77158573,104740.0,104730.0,0.00026302]
[1737771659176,0.77158573,104740.0,104730.0,0.03370026]
[1737771660476,0.82904281,104740.0,104730.0,0.03370026]
[1737771660879,0.82904281,104740.0,104730.0,0.00026302]
[1737771661682,0.77158573,104740.0,104730.0,0.00026302]
[1737771665770,0.82904281,104740.0,104730.0,0.00026302]
[1737771666891,0.77158573,104740.0,104730.0,0.00026302]
[1737771667179,0.61881973,104740.0,104730.0,0.03370025]
[1737771667380,0.77158573,104740.0,104730.0,0.03370025]
[1737771667769,0.82904281,104740.0,104730.0,0.03370025]
[1737771670179,0.77158573,104740.0,104730.0,0.03370025]
[1737771670981,0.77158573,104740.0,104730.0,0.00026302]
[1737771672083,0.56136265,104740.0,104730.0,0.00026302]
[1737771672378,0.25786627,104760.0,104750.0,0.152751]
[1737771672581,0.60312047,104770.0,104760.0,0.152737]
[1737771672774,0.60312047,104770.0,104760.0,0.73857593]
[1737771673182,0.60312047,104770.0,104760.0,0.79603301]
[1737771674277,0.60312047,104770.0,104760.0,0.76261116]
[1737771676787,0.00143251,104770.0,104760.0,0.93431477]
[1737771679481,0.00143251,104770.0,104760.0,0.94368156]
[1737771680978,0.00143251,104770.0,104760.0,0.77197795]
[1737771685680,0.00143251,104770.0,104760.0,0.71452087]
[1737771687089,0.00143251,104770.0,104760.0,0.77197795]
[1737771687392,0.0001434,104780.0,104760.0,0.61924095]
[1737771687586,0.0001434,104780.0,104770.0,0.57097908]
[1737771687788,0.0001434,104780.0,104770.0,0.62843616]
[1737771687985,0.35233186,104810.0,104770.0,0.54509216]
[1737771688194,0.44553186,104810.0,104800.0,0.57093508]
[1737771689791,0.29286086,104810.0,104800.0,0.513478]
[1737771693991,0.0932,104810.0,104800.0,0.513478]
[1737771695597,0.0932,104810.0,104800.0,0.60090187]
[1737771706114,0.29286086,104810.0,104800.0,0.60090187]
[1737771709823,0.29286086,104810.0,104800.0,0.57084028]
[1737771714330,0.29286086,104810.0,104800.0,0.60425067]
[1737771714925,0.29286086,104810.0,104800.0,0.57084028]
[1737771715728,0.34990683,104810.0,104800.0,0.57084028]
[1737771718530,0.4069528,104810.0,104800.0,0.74254389]
[1737771718733,0.46431508,104810.0,104800.0,0.68518161]
[1737771718939,0.61697908,104810.0,104800.0,0.17170361]
[1737771720432,0.61697908,104810.0,104800.0,0.20511625]
[1737771720635,0.62637011,104810.0,104800.0,0.20511625]
[1737771723736,0.4837552,104810.0,104800.0,0.03341264]
[1737771724941,0.8445552,104810.0,104800.0,0.03341264]
[1737771725542,0.90191748,104810.0,104800.0,0.03341264]
[1737771726145,0.8445552,104810.0,104800.0,0.03341264]
[1737771726749,0.90191748,104810.0,104800.0,0.03341264]
[1737771727244,0.152678,104800.0,104790.0,0.40072975]
[1737771727443,0.62820256,104800.0,104790.0,0.43414632]
[1737771727845,0.62820256,104800.0,104790.0,0.40072975]
[1737771728545,0.62820256,104800.0,104790.0,0.0001434]
[1737771729152,0.152693,104790.0,104780.0,0.40058635]
[1737771729351,0.63205528,104790.0,104780.0,0.43400524]
[1737771729642,0.69237752,104790.0,104780.0,0.43400568]
[1737771730341,0.69237752,104790.0,104780.0,0.40058635]
[1737771732351,0.83522827,104790.0,104770.0,0.68536701]
[1737771732546,0.83522827,104790.0,104770.0,0.71878728]
[1737771736244,0.24019252,104780.0,104770.0,0.20526728]
[1737771737550,0.24019252,104780.0,104770.0,0.03356367]
[1737771737747,0.32581974,104780.0,104770.0,0.03356367]
[1737771740555,0.43998937,104780.0,104770.0,0.03356367]
[1737771751661,0.46735091,104780.0,104770.0,0.03356367]
[1737771754963,0.52457444,104780.0,104770.0,0.03356367]
[1737771757972,0.41040481,104780.0,104770.0,0.03356367]
[1737771758270,0.41040481,104780.0,104770.0,0.0335651]
[1737771759977,0.35298178,104780.0,104770.0,0.0335651]
[1737771761073,0.29555875,104780.0,104770.0,0.09098813]
[1737771761281,0.29555875,104780.0,104770.0,0.0335651]
[1737771761575,0.35298178,104780.0,104770.0,0.0335651]
[1737771765585,0.35298178,104780.0,104770.0,0.20526871]
[1737771768686,0.35298178,104780.0,104770.0,0.21466631]
[1737771769085,0.35298178,104780.0,104770.0,0.25644331]
[1737771770593,0.52440268,104780.0,104770.0,0.25644331]
[1737771771897,0.52440268,104780.0,104770.0,0.21466631]
[1737771775299,0.38155193,104780.0,104770.0,0.21466631]
[1737771788311,0.22884393,104780.0,104770.0,0.57546631]
[1737771788508,0.22884393,104780.0,104770.0,0.72818831]
[1737771791516,0.38155193,104780.0,104770.0,0.72818831]
[1737771791723,0.38155193,104780.0,104770.0,0.69476661]
[1737771795222,0.38155193,104780.0,104770.0,0.40072975]
[1737771795223,0.46772943,104780.0,104770.0,0.40072975]
[1737771796816,0.88595246,104780.0,104770.0,0.40072975]
[1737771797022,0.82852943,104780.0,104770.0,0.40072975]
[1737771797217,0.88595246,104780.0,104770.0,0.40072975]
[1737771797727,0.82852943,104780.0,104770.0,0.40072975]
[1737771799928,0.71404125,104780.0,104770.0,0.17184701]
[1737771803334,0.88546215,104780.0,104770.0,0.0001434]
[1737771805022,0.52466215,104780.0,104770.0,0.0001434]
[1737771805631,0.52466215,104780.0,104770.0,0.0335647]
[1737771805831,0.52466215,104780.0,104770.0,0.3943647]
[1737771806037,0.52466215,104780.0,104770.0,0.0335647]
[1737771807038,0.88546215,104780.0,104770.0,0.0335647]
[1737771807838,0.71404125,104780.0,104770.0,0.20526831]
[1737771811238,0.71404125,104780.0,104770.0,0.0335647]
[1737771811438,0.88546215,104780.0,104770.0,0.0335647]
[1737771820444,0.88546215,104780.0,104770.0,0.0001434]
[1737771823234,0.88546215,104780.0,104770.0,0.03356551]
[1737771824142,0.88546215,104780.0,104770.0,0.0335657]
[1737771825051,0.88546215,104780.0,104770.0,0.20526931]
[1737771826048,0.88546215,104780.0,104770.0,0.17184701]
[1737771826342,0.31453112,104780.0,104770.0,0.35799107]
[1737771828849,0.14311022,104780.0,104770.0,0.58687381]
[1737771830053,0.71404125,104780.0,104770.0,0.40072975]
[1737771832250,0.77146428,104780.0,104770.0,0.40072975]
[1737771832449,0.82888731,104780.0,104770.0,0.40072975]
[1737771833049,0.77146428,104780.0,104770.0,0.40072975]
[1737771833550,0.77146428,104780.0,104770.0,0.17184701]
[1737771836960,0.85719799,104780.0,104770.0,0.0001434]
[1737771837648,0.79977496,104780.0,104770.0,0.0001434]
[1737771840764,0.62835406,104780.0,104770.0,0.0001434]
[1737771846863,0.57093103,104780.0,104770.0,0.0001434]
[1737771847167,0.62835406,104780.0,104770.0,0.0001434]
[1737771848173,0.3608,104780.0,104770.0,0.0001434]
[1737771848367,0.56106687,104780.0,104770.0,0.0640434]
[1737771850775,0.7711979,104780.0,104770.0,0.0640434]
[1737771852072,0.7711979,104780.0,104770.0,0.0001434]
[1737771853167,0.88548757,104780.0,104770.0,0.0001434]
[1737771857078,0.94261051,104780.0,104770.0,0.0001434]
[1737771858176,1.00003354,104780.0,104770.0,0.0001434]
[1737771858372,0.152737,104760.0,104750.0,0.46348635]
[1737771858677,0.26758306,104760.0,104750.0,0.40058635]
[1737771858865,0.62838306,104760.0,104750.0,0.40058635]
[1737771860377,0.82844236,104760.0,104750.0,0.17170361]
[1737771860775,0.152751,104750.0,104740.0,0.22902614]
[1737771861074,0.72329706,104750.0,104740.0,0.22902614]
[1737771861275,0.66587403,104750.0,104740.0,0.22902614]
[1737771862075,0.72329706,104750.0,104740.0,0.22902614]
[1737771862483,0.66587403,104750.0,104740.0,0.22902614]
[1737771862779,0.72329706,104750.0,104740.0,0.22902614]
[1737771865477,0.73270149,104750.0,104740.0,0.22902614]
[1737771865774,0.87554533,104750.0,104720.0,0.56125965]
[1737771865973,0.05742303,104730.0,104720.0,0.65689409]
[1737771867079,0.21033443,104740.0,104720.0,0.71431712]
[1737771870084,0.29589142,104740.0,104720.0,0.71431712]
[1737771871584,0.29589142,104740.0,104720.0,0.65689409]
[1737771872478,0.29589142,104740.0,104720.0,0.71431712]
[1737771873685,0.23846839,104740.0,104730.0,0.21020403]
[1737771874086,0.1529114,104740.0,104730.0,0.513581]
[1737771874488,0.21033443,104740.0,104730.0,0.513581]
[1737771877791,0.57113443,104740.0,104730.0,0.152781]
[1737771878087,0.21033443,104740.0,104730.0,0.513581]
[1737771879090,0.26775746,104740.0,104730.0,0.513581]
[1737771879286,0.21033443,104740.0,104730.0,0.513581]
[1737771881198,0.26775746,104740.0,104730.0,0.513581]
[1737771882690,0.26775746,104740.0,104730.0,0.3608]
[1737771882998,0.62855746,104740.0,104720.0,0.60882315]
[1737771883198,0.05742303,104730.0,104720.0,0.60882315]
[1737771884798,0.05742303,104730.0,104720.0,0.64225821]
[1737771886290,0.05742303,104730.0,104720.0,0.61065821]
[1737771887200,0.21020403,104730.0,104720.0,0.61065821]
[1737771887601,0.21020403,104730.0,104720.0,0.24985821]
[1737771888903,0.29576102,104730.0,104720.0,0.21855821]
[1737771889104,0.32746102,104730.0,104720.0,0.21855821]
[1737771892808,0.33680188,104730.0,104720.0,0.21855821]
[1737771893108,0.50816472,104730.0,104720.0,0.21855821]
[1737771894799,0.50816472,104730.0,104720.0,0.18765821]
[1737771894999,0.53826472,104730.0,104720.0,0.18765821]
[1737771895698,0.57146472,104730.0,104720.0,0.18765821]
[1737771900710,0.57146472,104730.0,104720.0,0.54845821]
[1737771900912,0.57146472,104730.0,104720.0,0.51502315]
[1737771901103,0.57146472,104730.0,104720.0,0.15422315]
[1737771902115,0.98968775,104730.0,104720.0,0.00171911]
[1737771902320,0.98968775,104730.0,104720.0,0.00028696]
[1737771906020,0.90418053,104730.0,104720.0,0.00028696]
[1737771906829,0.90418053,104730.0,104710.0,0.0001434]
[1737771906830,0.152795,104720.0,104710.0,0.0001434]
[1737771907022,0.62844106,104720.0,104710.0,0.0001434]
[1737771907926,0.68586409,104720.0,104710.0,0.0001434]
[1737771908422,0.62844106,104720.0,104710.0,0.0011434]
[1737771908627,0.68586409,104720.0,104710.0,0.00100001]
[1737771909024,0.62844106,104720.0,104710.0,0.00100001]
[1737771909416,0.68586409,104720.0,104710.0,0.00100001]
[1737771909627,0.62844106,104720.0,104710.0,0.00100001]
[1737771910431,0.68586409,104720.0,104710.0,0.00100001]
[1737771910628,0.68586409,104720.0,104710.0,1e-08]
[1737771911019,1.00003331,104720.0,104710.0,1e-08]
[1737771912831,0.84723831,104720.0,104700.0,0.0709634]
[1737771913025,0.72455606,104710.0,104700.0,1e-08]
[1737771913331,0.152824,104700.0,104690.0,0.22888274]
[1737771913529,0.68589309,104700.0,104690.0,0.22888274]
[1737771914424,0.62847006,104700.0,104690.0,0.22888274]
[1737771915231,0.68589309,104700.0,104690.0,0.22888274]
[1737771915437,0.53306909,104700.0,104680.0,0.28603352]
[1737771915634,0.72378506,104690.0,104680.0,0.28603352]
[1737771915830,0.72378506,104690.0,104680.0,9.562e-05]
[1737771920438,0.62836909,104690.0,104660.0,0.51443261]
[1737771920641,0.47564606,104670.0,104660.0,0.51443261]
[1737771920943,0.62851406,104670.0,104650.0,0.185695]
[1737771921147,0.11484606,104660.0,104650.0,0.3936]
[1737771921329,0.05742303,104660.0,104650.0,0.3936]
[1737771921530,0.05742303,104660.0,104650.0,0.546497]
[1737771921836,0.63369381,104670.0,104650.0,0.546497]
[1737771925637,0.64318282,104670.0,104650.0,0.546497]
[1737771926044,0.08768241,104660.0,104650.0,0.546497]
[1737771927538,0.08768241,104660.0,104650.0,0.185697]
[1737771927747,0.08768241,104660.0,104650.0,0.546497]
[1737771928138,0.28238282,104670.0,104650.0,0.546497]
[1737771930946,0.31458282,104670.0,104650.0,0.546497]
[1737771932156,0.28238282,104670.0,104650.0,0.546497]
[1737771933253,0.28238282,104670.0,104650.0,0.185697]
[1737771933454,0.28238282,104670.0,104650.0,0.546497]
[1737771934154,0.64318282,104670.0,104650.0,0.546497]
[1737771938257,0.49031482,104670.0,104650.0,0.185697]
[1737771938550,0.152883,104660.0,104650.0,0.3936]
[1737771939351,0.152883,104660.0,104650.0,0.0328]
[1737771944458,0.23813813,104660.0,104650.0,0.0328]
[1737771946062,0.29567638,104660.0,104650.0,0.0328]
[1737771946464,0.23813813,104660.0,104650.0,0.0328]
[1737771948058,0.40968274,104660.0,104650.0,0.0328]
[1737771952068,0.46722099,104660.0,104650.0,0.0328]
[1737771952259,0.32446438,104660.0,104650.0,0.0328]
[1737771953464,0.32446438,104660.0,104640.0,0.92088318]
[1737771953862,0.32446438,104660.0,104640.0,0.86334493]
[1737771954669,0.32446438,104660.0,104640.0,0.92088318]
[1737771955872,0.32446438,104660.0,104640.0,0.63494528]
[1737771955873,0.08585651,104650.0,104640.0,0.63494528]
[1737771956665,0.23875351,104650.0,104640.0,0.63494528]
[1737771959975,0.23875351,104650.0,104640.0,0.92631854]
[1737771960170,0.23875351,104650.0,104640.0,1.21225644]
[1737771961179,0.23875351,104650.0,104640.0,1.21325644]
[1737771962574,0.23875351,104650.0,104640.0,1.18165644]
[1737771970669,0.35279664,104650.0,104640.0,1.18165644]
[1737771973578,0.19989964,104650.0,104640.0,1.18165644]
[1737771976674,0.19989964,104650.0,104640.0,1.21305644]
[1737771981689,0.19989964,104650.0,104640.0,1.25488073]
[1737771982085,0.19989964,104650.0,104640.0,1.59642702]
[1737771985190,0.19989964,104650.0,104640.0,1.50748877]
[1737771985397,0.23089964,104650.0,104640.0,1.50748877]
[1737771986494,0.23089964,104650.0,104640.0,1.56502702]
[1737771986793,0.38379664,104650.0,104640.0,1.47548877]
[1737771987092,0.44759664,104650.0,104640.0,1.47548877]
[1737771988194,0.44759664,104650.0,104640.0,1.43366448]
[1737771989398,0.44759664,104650.0,104640.0,1.09211819]
[1737771989590,0.50513489,104650.0,104640.0,1.09211819]
[1737771989996,0.51450981,104650.0,104640.0,1.09211819]
[1737771992996,0.51450981,104650.0,104640.0,1.32147622]
[1737772003225,0.51450981,104650.0,104640.0,0.96067622]
[1737772003430,0.51450981,104650.0,104640.0,0.80776922]
[1737772003630,0.51450981,104650.0,104640.0,0.80766919]
[1737772004726,0.51450981,104650.0,104640.0,0.80666919]
[1737772008928,0.57140991,104650.0,104640.0,0.17193072]
[1737772023542,0.54040991,104650.0,104640.0,0.32484272]
[1737772031441,0.48287166,104650.0,104640.0,0.32484272]
[1737772032047,0.25679974,104650.0,104640.0,0.74318097]
[1737772032248,0.25679974,104650.0,104640.0,0.80478097]
[1737772032941,0.14275661,104650.0,104640.0,1.034139]
[1737772033547,0.14275661,104650.0,104640.0,0.97660075]
[1737772037562,0.08578476,104650.0,104640.0,1.09060793]
[1737772039357,0.14332301,104650.0,104640.0,1.09060793]
[1737772040058,0.14332301,104650.0,104640.0,1.12406869]
[1737772042356,0.14332301,104650.0,104640.0,0.83813079]
[1737772043758,0.08578476,104650.0,104640.0,0.83813079]
[1737772046059,0.08578476,104650.0,104640.0,1.01005813]
[1737772047056,0.08578476,104650.0,104640.0,1.06759638]
[1737772048461,0.08578476,104650.0,104640.0,1.01005813]
[1737772050055,0.08578476,104650.0,104640.0,1.01969853]
[1737772052966,0.08578476,104650.0,104640.0,1.01005813]
[1737772053266,0.08578476,104650.0,104640.0,0.97659737]
[1737772054661,0.08578476,104650.0,104640.0,0.94659737]
[1737772056363,0.29622001,104650.0,104640.0,0.94659737]
[1737772056560,0.32692001,104650.0,104640.0,0.94659737]
[1737772057469,0.32692001,104650.0,104640.0,0.76303439]
[1737772057666,0.32692001,104650.0,104640.0,0.73143439]
[1737772059053,0.35782001,104650.0,104640.0,0.57852239]
[1737772059868,0.35782001,104650.0,104640.0,0.6119851]
[1737772062466,0.35782001,104650.0,104640.0,0.03346271]
[1737772062467,0.41479186,104650.0,104640.0,0.03346271]
[1737772062669,0.47233011,104650.0,104640.0,0.03346271]
[1737772062870,0.152912,104640.0,104630.0,0.7996599]
[1737772063059,0.24375025,104640.0,104630.0,0.83312306]
[1737772064466,0.24375025,104640.0,104630.0,0.47232306]
[1737772064665,0.24375025,104640.0,104630.0,0.47332306]
[1737772064867,0.24375025,104640.0,104630.0,0.32040106]
[1737772065557,0.24375025,104640.0,104630.0,0.68120106]
[1737772065758,0.32946357,104640.0,104630.0,0.79645354]
[1737772066667,0.32946357,104640.0,104630.0,0.43465354]
[1737772066855,0.32946357,104640.0,104630.0,0.79545354]
[1737772067265,0.32946357,104640.0,104630.0,0.43465354]
[1737772067768,0.32946357,104640.0,104630.0,1.00591879]
[1737772067968,0.32946357,104640.0,104630.0,0.94838054]
[1737772069966,0.30795068,104640.0,104630.0,1.0589329]
[1737772070172,0.31772827,104640.0,104630.0,1.0589329]
[1737772070374,0.31772827,104640.0,104630.0,1.12451661]
[1737772070564,0.28784925,104640.0,104630.0,1.12451661]
[1737772070873,0.18632916,104640.0,104630.0,1.12451661]
[1737772071172,0.33924116,104640.0,104630.0,1.12451661]
[1737772071371,0.30594116,104640.0,104630.0,1.12451661]
[1737772071768,0.22825571,104640.0,104630.0,1.12451661]
[1737772072274,0.13861864,104640.0,104630.0,1.12451661]
[1737772072466,0.05753825,104640.0,104630.0,1.12451661]
[1737772072664,0.02407373,104640.0,104630.0,1.12451661]
[1737772072865,0.77573826,104650.0,104630.0,1.21225486]
[1737772073677,0.74344051,104650.0,104630.0,1.21225486]
[1737772074572,0.74344051,104650.0,104630.0,1.15471661]
[1737772076772,0.77634051,104650.0,104630.0,1.15471661]
[1737772078274,0.69865488,104650.0,104630.0,1.15471661]
[1737772078782,0.69865488,104650.0,104630.0,1.21225486]
[1737772079468,0.69865488,104650.0,104630.0,1.14667115]
[1737772079671,0.632921,104650.0,104630.0,1.14667115]
[1737772080270,0.59109035,104650.0,104630.0,1.14667115]
[1737772080576,0.59109035,104650.0,104630.0,1.03611879]
[1737772082279,0.59123375,104650.0,104630.0,1.03626219]
[1737772082777,0.59123375,104650.0,104630.0,0.88333519]
[1737772083079,0.55833375,104650.0,104640.0,0.152912]
[1737772083271,0.55833375,104650.0,104640.0,0.183612]
[1737772084383,0.55833375,104650.0,104640.0,0.214912]
[1737772085075,0.55833375,104650.0,104640.0,0.38685073]
[1737772085275,0.55833375,104650.0,104640.0,0.42031496]
[1737772089788,0.3478955,104650.0,104640.0,0.47785321]
[1737772089990,0.0001434,104650.0,104640.0,0.83865321]
[1737772090383,0.0001434,104650.0,104640.0,0.88047794]
[1737772092481,0.0001434,104650.0,104640.0,0.83865321]
[1737772093390,0.0001434,104650.0,104640.0,1.26574596]
[1737772097690,0.0001434,104650.0,104640.0,1.49486661]
[1737772098293,0.0001434,104650.0,104640.0,1.50652494]
[1737772099900,0.0001434,104650.0,104640.0,1.47306071]
[1737772106195,0.0001434,104650.0,104640.0,0.87402923]
[1737772112200,0.27906453,104660.0,104640.0,0.72111723]
[1737772112400,0.27906453,104660.0,104650.0,0.152897]
[1737772116001,0.33660278,104660.0,104650.0,0.152897]
[1737772116602,0.12617853,104660.0,104650.0,0.24389482]
[1737772116800,0.12617853,104660.0,104650.0,0.18635657]
[1737772118107,0.12617853,104660.0,104650.0,0.35822632]
[1737772122913,0.12617853,104660.0,104650.0,0.41547722]
[1737772122914,0.26892539,104660.0,104650.0,0.41547722]
[1737772125215,0.26892539,104660.0,104650.0,0.44567722]
[1737772126420,0.32646364,104660.0,104650.0,0.44567722]
[1737772127413,0.26892539,104660.0,104650.0,0.44567722]
[1737772130909,0.25694965,104660.0,104650.0,0.90583981]
[1737772131421,0.25694965,104660.0,104650.0,0.86401547]
[1737772135725,0.31231894,104670.0,104660.0,0.152883]
[1737772135925,0.31231894,104670.0,104660.0,0.544983]
[1737772136126,0.31231894,104670.0,104660.0,0.60252125]
[1737772136521,0.31231894,104670.0,104660.0,0.544983]
[1737772137227,0.15945094,104670.0,104660.0,0.60252125]